bitfinex-derivatives/quotes_ETHF0:USTF0_20241105
["timestamp","ask_amount","ask_price","bid_price","bid_amount"]
[1730847956272,0.4394,2435.8,2435.7,0.41058]
[1730847956970,0.4394,2435.8,2435.3,3.2078]
[1730847957167,0.41058,2435.7,2435.5,0.4106]
[1730847957570,0.41061,2435.6,2435.3,3.61843]
[1730847957870,0.41061,2435.6,2435.4,0.41062]
[1730847958171,0.448,2435.7,2435.3,3.2078]
[1730847958172,0.85858,2435.7,2435.5,0.41061]
[1730847958376,0.85858,2435.7,2435.4,0.41061]
[1730847958664,0.85858,2435.7,2435.2,0.4304]
[1730847958665,0.448,2435.7,2435.2,0.4304]
[1730847958872,5.77096686,2435.6,2435.0,3.2078]
[1730847959074,0.41063,2435.4,2435.1,0.86476]
[1730847959375,0.41064,2435.4,2435.1,0.86476]
[1730847959766,0.41063,2435.4,2435.1,0.86476]
[1730847960469,0.86182,2435.5,2435.2,0.41065]
[1730847960870,0.86182,2435.5,2435.1,0.4541]
[1730847961174,0.86182,2435.5,2435.1,0.86477]
[1730847961175,0.41064,2435.4,2435.1,0.86477]
[1730847961562,0.84084,2435.3,2435.1,0.86477]
[1730847962269,0.41066,2435.2,2434.7,3.61854]
[1730847962475,0.4345,2435.2,2434.7,3.2078]
[1730847962662,0.4345,2435.2,2434.8,0.41071]
[1730847962663,0.41068,2435.1,2434.8,0.41071]
[1730847962872,0.41068,2435.1,2434.7,3.2078]
[1730847963270,0.41071,2435.0,2434.7,3.61854]
[1730847963473,0.41071,2435.0,2434.7,3.61853]
[1730847963672,0.41073,2434.8,2434.7,3.2078]
[1730847964373,41.67083,2434.8,2434.7,3.2078]
[1730847965275,0.41077,2434.6,2434.4,0.4482]
[1730847965467,2.56316686,2434.5,2433.7,1.03587432]
[1730847965774,0.41088,2433.9,2433.8,0.4482]
[1730847965968,2.56316686,2434.0,2433.5,4.07343]
[1730847965969,5.77096686,2434.0,2433.5,4.07343]
[1730847966171,0.41091,2433.7,2433.5,3.2078]
[1730847966469,0.4702,2433.9,2433.8,0.4109]
[1730847966730,3.2078,2434.0,2433.8,0.41088]
[1730847966879,0.41085,2434.1,2433.9,0.4482]
[1730847967080,0.41086,2434.0,2433.9,0.4482]
[1730847967271,0.41088,2433.9,2433.5,3.61874]
[1730847967781,3.2078,2434.1,2433.5,3.61874]
[1730847967782,0.41087,2434.0,2433.6,0.41093]
[1730847968280,3.2078,2434.1,2433.5,3.2078]
[1730847968778,3.2078,2434.1,2433.8,0.41089]
[1730847968988,3.2078,2434.1,2433.5,3.2078]
[1730847969282,0.41083,2434.2,2433.8,0.41089]
[1730847969576,2.56316686,2434.3,2433.5,3.2078]
[1730847969776,0.41087,2434.0,2433.6,0.41092]
[1730847969985,0.41084,2434.2,2433.8,0.41089]
[1730847970676,0.41084,2434.2,2433.5,3.2078]
[1730847970881,0.41084,2434.2,2433.8,0.41088]
[1730847971183,0.41084,2434.2,2433.7,0.4109]
[1730847971769,0.41084,2434.2,2433.8,0.41089]
[1730847972277,0.41083,2434.2,2433.8,0.41089]
[1730847972675,0.41083,2434.2,2433.5,3.2078]
[1730847972676,2.56316686,2434.1,2433.5,3.2078]
[1730847972977,5.77096686,2434.1,2433.8,0.41089]
[1730847973173,6.18181686,2434.1,2433.8,0.41089]
[1730847973570,10.29061686,2434.1,2433.5,3.2078]
[1730847973768,5.77096686,2434.1,2433.3,0.8721]
[1730847973972,5.77096686,2434.1,2433.1,0.41101]
[1730847973973,3.2078,2433.4,2433.1,0.41101]
[1730847974274,3.2078,2433.4,2433.0,0.41102]
[1730847974275,3.61876,2433.4,2433.0,0.41102]
[1730847974477,3.6646,2433.4,2432.9,0.4448]
[1730847974775,4.1231,2433.4,2432.9,0.4448]
[1730847974977,0.411,2433.2,2432.9,0.4448]
[1730847975300,2.97415686,2433.3,2432.9,0.41103]
[1730847976568,2.56316686,2433.3,2432.8,0.26820654]
[1730847976776,0.4568,2433.4,2433.2,0.41099]
[1730847977696,3.2078,2433.7,2433.6,0.41093]
[1730847978365,3.2078,2434.1,2433.6,4.1088]
[1730847978671,3.2078,2434.1,2434.0,0.41086]
[1730847978976,2.97403686,2434.0,2433.7,0.41091]
[1730847979686,2.56316686,2434.0,2433.3,4.5596]
[1730847979905,2.56316686,2433.8,2433.3,0.4656]
[1730847980176,0.41092,2433.7,2433.3,0.87658]
[1730847980567,0.41093,2433.6,2433.3,0.87658]
[1730847980874,5.77096686,2433.8,2433.3,0.4656]
[1730847981062,0.41094,2433.6,2433.3,0.4656]
[1730847981470,0.41094,2433.6,2433.3,0.87658]
[1730847981655,0.4642,2433.7,2433.3,0.4656]
[1730847981863,0.87512,2433.7,2433.4,0.41096]
[1730847982074,0.41093,2433.6,2433.3,0.87657]
[1730847982361,0.87512,2433.7,2433.3,0.4656]
[1730847982665,0.87512,2433.7,2433.4,0.41096]
[1730847983065,0.41095,2433.6,2433.3,0.4656]
[1730847983264,0.41095,2433.5,2433.3,0.4656]
[1730847983661,0.41096,2433.4,2433.3,0.4656]
[1730847983864,0.86603,2433.6,2433.4,0.41096]
[1730847984253,0.86603,2433.6,2433.3,0.4656]
[1730847984254,0.4551,2433.6,2433.3,0.4656]
[1730847984450,0.87512,2433.7,2433.4,0.41096]
[1730847984667,3.2078,2433.8,2433.6,0.41092]
[1730847984952,0.41091,2433.7,2433.5,0.41094]
[1730847985150,0.41091,2433.7,2433.4,0.41095]
[1730847985356,0.41091,2433.7,2433.3,0.4656]
[1730847985546,0.41091,2433.7,2433.4,0.41096]
[1730847985841,3.61871,2433.8,2433.5,0.41095]
[1730847986041,0.4551,2433.9,2433.3,4.70084]
[1730847986249,0.88007,2434.0,2433.7,0.4109]
[1730847986449,0.88007,2434.0,2433.8,0.41089]
[1730847986450,0.41087,2434.0,2433.8,0.41089]
[1730847987745,1.33555,2434.1,2433.9,0.41087]
[1730847987950,0.88245,2434.1,2433.9,0.41087]
[1730847988952,0.88245,2434.1,2433.8,0.41088]
[1730847989251,0.88245,2434.1,2433.9,0.84878]
[1730847989550,0.88245,2434.1,2433.9,0.84877]
[1730847989751,0.4716,2434.1,2433.9,0.4379]
[1730847989951,0.4716,2434.1,2434.0,0.41086]
[1730847990649,3.2078,2434.2,2434.1,0.41085]
[1730847990851,3.2078,2434.6,2434.1,4.108]
[1730847991040,0.4332,2434.7,2434.1,3.2078]
[1730847991246,40.8,2434.6,2434.5,0.41077]
[1730847992047,0.41074,2434.8,2434.6,0.41075]
[1730847992048,0.41073,2434.8,2434.6,0.41075]
[1730847992253,0.41073,2434.8,2434.6,0.4391]
[1730847992555,40.8,2434.7,2434.6,0.84986]
[1730847993249,1.3381,2435.1,2434.6,4.5463]
[1730847993250,0.8906,2435.1,2434.6,4.5463]
[1730847993554,0.4332,2435.1,2434.6,0.4391]
[1730847993753,0.4332,2435.1,2435.0,0.41069]
[1730847994246,41.2332,2435.1,2434.9,0.4107]
[1730847994449,41.2332,2435.1,2434.7,0.4723]
[1730847994851,41.2332,2435.1,2434.9,0.4107]
[1730847995852,0.41074,2434.8,2434.6,0.4391]
[1730847996041,0.41072,2434.9,2434.6,0.84985]
[1730847996244,0.84602,2434.9,2434.6,0.84985]
[1730847996443,0.4353,2434.9,2434.7,0.41074]
[1730847996652,0.84602,2434.9,2434.6,0.84985]
[1730847997056,0.4353,2434.9,2434.6,0.4391]
[1730847997254,0.4353,2434.9,2434.4,3.2078]
[1730847997255,0.41078,2434.5,2434.4,3.2078]
[1730847997451,0.41077,2434.6,2434.4,3.2078]
[1730847997653,3.2078,2434.8,2434.4,3.2078]
[1730847997846,0.4655,2434.5,2434.4,3.61859]
[1730847998048,0.4655,2434.5,2434.4,3.2078]
[1730847998254,0.4655,2434.5,2434.4,3.61859]
[1730847998454,0.4655,2434.5,2434.4,3.2078]
[1730847998751,0.4655,2434.5,2434.4,3.61859]
[1730847998948,3.2078,2434.8,2434.6,0.41074]
[1730847999148,0.84602,2434.9,2434.7,0.4377]
[1730847999352,0.4353,2434.9,2434.7,0.84844]
[1730847999953,0.9078,2435.0,2434.8,0.41072]
[1730848000352,1.31849,2435.0,2434.8,0.41072]
[1730848000858,44.0078,2435.1,2434.7,0.4377]
[1730848001157,0.16668378,2435.8,2435.4,0.41063]
[1730848001158,3.6807,2435.5,2435.4,0.41063]
[1730848001555,3.6807,2435.5,2435.0,4.2345]
[1730848001556,3.6807,2435.5,2435.3,0.41063]
[1730848001759,44.4807,2435.5,2435.3,0.41063]
[1730848001955,44.89131,2435.5,2435.2,0.41065]
[1730848002152,4.09131,2435.5,2435.2,0.41065]
[1730848002656,3.6807,2435.5,2435.0,3.2078]
[1730848003158,3.6807,2435.5,2435.2,0.41066]
[1730848003159,4.09132,2435.5,2435.2,0.41066]
[1730848003555,3.6807,2435.5,2435.0,3.2078]
[1730848003868,4.09132,2435.5,2435.2,0.41065]
[1730848004053,3.6807,2435.5,2435.0,3.2078]
[1730848004252,0.41064,2435.4,2435.1,0.41067]
[1730848004463,4.09132,2435.5,2435.2,0.41066]
[1730848004959,7.7871,2435.5,2435.0,3.2078]
[1730848005159,3.6807,2435.5,2435.0,3.2078]
[1730848005358,0.41068,2435.1,2435.0,3.2078]
[1730848005962,3.6807,2435.5,2435.0,3.61848]
[1730848005963,0.41065,2435.3,2435.0,3.61848]
[1730848006268,0.41067,2435.2,2435.0,3.2078]
[1730848006475,3.6807,2435.5,2435.0,3.2078]
[1730848006665,0.41068,2435.1,2435.0,3.2078]
[1730848006857,0.4107,2435.0,2434.7,4.05623]
[1730848007364,0.41068,2435.1,2434.8,0.41072]
[1730848008367,0.4107,2435.0,2434.7,4.05623]
[1730848008669,0.41072,2434.9,2434.7,3.6455]
[1730848008868,0.41073,2434.8,2434.7,3.6455]
[1730848009065,0.87802,2434.9,2434.7,4.05624]
[1730848009660,0.87802,2434.9,2434.7,0.4377]
[1730848009856,0.41073,2434.8,2434.7,0.4377]
[1730848010764,0.41075,2434.7,2434.4,3.61859]
[1730848010965,0.41075,2434.7,2434.5,0.4753]
[1730848011171,0.41076,2434.6,2434.5,0.4753]
[1730848011362,0.41076,2434.7,2434.5,0.4753]
[1730848012267,0.41076,2434.6,2434.5,0.4753]
[1730848013162,3.6751,2434.9,2434.5,0.88607]
[1730848013365,0.41073,2434.8,2434.6,0.41076]
[1730848013571,0.41073,2434.8,2434.5,0.4753]
[1730848013869,0.41075,2434.7,2434.5,0.4753]
[1730848014580,0.41075,2434.7,2434.5,0.88607]
[1730848015266,3.6751,2434.9,2434.5,0.88607]
[1730848015461,0.41075,2434.7,2434.5,0.88607]
[1730848016767,0.41076,2434.6,2434.5,0.4753]
[1730848016966,3.6751,2434.9,2434.5,0.4753]
[1730848017267,0.41075,2434.7,2434.5,0.88607]
[1730848018373,0.41075,2434.7,2434.5,0.4753]
[1730848019268,0.41076,2434.6,2434.5,0.4753]
[1730848020571,0.41082,2434.3,2434.1,3.61864]
[1730848020777,0.41083,2434.2,2434.1,3.6459]
[1730848021769,0.41083,2434.2,2434.1,0.4381]
[1730848022072,0.41088,2433.9,2433.8,0.4698]
[1730848024671,4.1088,2433.9,2433.4,3.2078]
[1730848024872,0.41092,2433.7,2433.4,3.6776]
[1730848025070,0.41092,2433.7,2433.4,4.08856]
[1730848025265,0.41092,2433.7,2433.4,0.88076]
[1730848025474,3.2078,2434.0,2433.5,9.88121765]
[1730848025670,0.41088,2433.9,2433.6,0.41092]
[1730848025871,3.2078,2434.0,2433.7,0.4109]
[1730848026070,0.41088,2433.9,2433.6,0.41091]
[1730848026776,0.41089,2433.9,2433.6,0.41093]
[1730848027077,0.41091,2433.7,2433.5,3.61874]
[1730848027277,4.1181,2434.0,2433.5,3.61874]
[1730848027481,0.41091,2433.8,2433.5,3.61874]
[1730848027674,0.41088,2433.9,2433.6,0.41093]
[1730848027978,4.1181,2434.0,2433.5,3.2078]
[1730848028170,0.41088,2433.9,2433.7,0.4109]
[1730848028376,0.41089,2433.9,2433.7,0.4109]
[1730848028570,3.2078,2434.0,2433.5,3.2078]
[1730848028764,0.41088,2433.9,2433.7,0.4109]
[1730848029569,0.41091,2433.7,2433.6,0.41092]
[1730848029771,2.56381765,2434.1,2433.5,3.2078]
[1730848029772,0.41093,2433.6,2433.5,3.2078]
[1730848029973,0.41091,2433.7,2433.6,0.41092]
[1730848030373,0.41091,2433.8,2433.6,0.41092]
[1730848030577,0.41092,2433.7,2433.5,3.61874]
[1730848030979,0.4109,2433.8,2433.6,0.41092]
[1730848031882,0.41091,2433.7,2433.5,3.61874]
[1730848032081,0.41091,2433.7,2433.5,3.2078]
[1730848032279,0.4109,2433.8,2433.6,0.41093]
[1730848032575,0.41091,2433.8,2433.6,0.41092]
[1730848032779,0.41088,2433.9,2433.7,0.41091]
[1730848032979,0.8805,2434.3,2433.9,0.41087]
[1730848033176,0.8805,2434.3,2434.0,0.4529]
[1730848033379,0.41085,2434.1,2434.0,0.4529]
[1730848034975,0.41085,2434.1,2433.5,3.2078]
[1730848034976,0.41085,2434.1,2433.8,0.41089]
[1730848035883,1.29132,2434.3,2434.0,0.41086]
[1730848036084,0.41083,2434.2,2434.1,0.4512]
[1730848038579,1.29132,2434.3,2434.1,0.86204]
[1730848038779,0.8805,2434.3,2434.1,0.4512]
[1730848038983,0.41083,2434.2,2434.1,0.4512]
[1730848039382,1.29132,2434.3,2434.1,0.4512]
[1730848039889,0.41083,2434.2,2434.1,0.4512]
[1730848043977,40.8,2434.4,2434.2,0.41083]
[1730848044182,40.8,2434.4,2434.1,0.4512]
[1730848044377,40.8,2434.4,2434.3,0.41081]
[1730848045088,41.2108,2434.4,2434.2,1.28252]
[1730848045389,0.41079,2434.5,2434.2,1.28252]
[1730848045588,5.77161765,2434.8,2434.5,0.41077]
[1730848045779,40.8,2435.2,2434.6,0.4393]
[1730848045985,0.41072,2434.9,2434.7,0.4414]
[1730848046390,2.97452765,2435.0,2434.7,0.85214]
[1730848047289,2.97452765,2435.0,2434.6,0.4393]
[1730848047290,0.41074,2434.8,2434.6,0.4393]
[1730848047594,0.41072,2434.9,2434.6,0.85006]
[1730848047893,0.41073,2434.8,2434.6,0.4393]
[1730848049183,2.56381765,2435.0,2434.6,0.4393]
[1730848049383,2.56381765,2435.0,2434.3,3.6492]
[1730848049588,0.41079,2434.5,2434.3,4.51391]
[1730848049896,0.41077,2434.6,2434.3,1.30611]
[1730848050491,0.84797,2434.6,2434.3,1.30611]
[1730848050894,0.41079,2434.5,2434.3,0.8953]
[1730848051391,0.9115,2434.6,2434.3,0.8953]
[1730848051597,0.41079,2434.4,2434.3,0.8953]
[1730848052180,0.41079,2434.4,2434.3,0.4539]
[1730848052385,0.41085,2434.1,2434.0,3.2078]
[1730848052589,0.41093,2433.6,2433.5,0.207]
[1730848052787,0.41093,2433.6,2433.4,0.4607]
[1730848053090,40.8,2433.5,2433.4,0.4607]
[1730848053291,0.41093,2433.6,2433.4,0.4607]
[1730848053493,3.2078,2433.8,2433.4,0.4607]
[1730848053693,3.2078,2433.8,2432.9,3.61884]
[1730848053694,0.41099,2433.3,2432.9,3.61884]
[1730848053894,2.56381765,2433.7,2433.0,0.4607]
[1730848053895,3.2078,2433.5,2433.0,0.4607]
[1730848054095,0.41097,2433.4,2433.0,0.87172]
[1730848054291,0.4365,2433.4,2433.0,0.4607]
[1730848054485,0.411,2433.2,2433.0,0.4607]
[1730848054691,0.41101,2433.1,2433.0,0.4607]
[1730848055100,1.3614,2433.4,2433.0,0.4607]
[1730848055396,3.2078,2433.2,2432.6,3.61889]
[1730848055600,0.41103,2433.0,2432.6,4.05429]
[1730848055990,3.2078,2433.2,2432.6,4.05429]
[1730848056194,0.41103,2433.1,2432.6,4.05429]
[1730848056392,3.2078,2433.2,2432.6,3.6432]
[1730848056598,0.41102,2433.1,2432.6,4.05429]
[1730848057295,1.77238,2433.4,2432.9,0.41104]
[1730848057497,0.41099,2433.3,2432.8,0.41106]
[1730848057690,1.3614,2433.4,2432.6,6.20701765]
[1730848057892,0.41099,2433.3,2432.9,0.41105]
[1730848058096,0.41099,2433.3,2432.8,0.41105]
[1730848058400,0.41099,2433.3,2432.9,0.41105]
[1730848058595,3.2078,2433.5,2432.6,6.20701765]
[1730848058797,3.2078,2433.5,2432.6,3.6432]
[1730848059007,0.41103,2433.1,2432.6,4.05429]
[1730848059701,0.41101,2433.2,2432.8,0.41106]
[1730848060201,3.2078,2433.5,2432.6,3.6432]
[1730848060400,0.41101,2433.2,2432.6,3.6432]
[1730848060596,0.41099,2433.3,2432.6,3.6432]
[1730848060797,0.41099,2433.3,2432.9,0.41105]
[1730848061293,3.2078,2433.5,2433.3,0.41097]
[1730848061494,3.2078,2433.5,2433.4,0.4594]
[1730848061800,3.2078,2433.5,2433.4,0.87036]
[1730848062100,3.2078,2433.5,2433.4,4.97996]
[1730848062505,3.61875,2433.5,2433.4,0.4594]
[1730848062703,3.2078,2433.5,2433.4,0.4594]
[1730848063002,3.61875,2433.5,2433.4,0.4594]
[1730848063193,3.2078,2433.5,2433.4,0.4594]
[1730848063706,0.41095,2433.5,2433.4,0.4594]
[1730848064000,4.1096,2433.5,2432.9,3.2078]
[1730848064207,2.56381765,2433.6,2432.9,3.2078]
[1730848064208,0.473,2433.4,2432.9,3.2078]
[1730848064404,0.41102,2433.1,2432.8,0.87046]
[1730848064704,4.07579,2433.3,2433.0,0.41102]
[1730848064900,0.457,2433.3,2432.9,3.2078]
[1730848065100,0.86799,2433.3,2433.0,0.41102]
[1730848067004,0.457,2433.3,2432.9,3.2078]
[1730848067197,0.86798,2433.3,2433.0,0.41102]
[1730848069101,0.457,2433.3,2432.9,3.2078]
[1730848069605,0.86799,2433.3,2432.9,3.2078]
[1730848069905,0.86799,2433.3,2433.1,0.41101]
[1730848070107,0.457,2433.3,2433.1,0.41101]
[1730848071599,0.457,2433.3,2432.9,3.2078]
[1730848072024,0.457,2433.3,2433.0,0.4502]
[1730848072324,0.457,2433.3,2433.1,0.41101]
[1730848072527,0.41095,2433.5,2433.2,0.411]
[1730848072728,0.41095,2433.5,2433.3,0.4555]
[1730848072929,0.41096,2433.4,2433.3,0.4555]
[1730848073135,41.21096,2433.4,2433.3,0.4555]
[1730848073341,40.8,2433.4,2433.3,0.4555]
[1730848073649,0.41096,2433.4,2433.3,0.4555]
[1730848077348,3.2078,2433.7,2433.4,0.41096]
[1730848077548,0.4395,2433.8,2433.3,0.86647]
[1730848077549,0.41094,2433.6,2433.3,0.86647]
[1730848077742,0.41095,2433.5,2433.3,0.86647]
[1730848077946,0.4395,2433.8,2433.3,0.86647]
[1730848078246,0.41093,2433.6,2433.3,0.86647]
[1730848078551,0.4395,2433.8,2433.4,0.41096]
[1730848078744,0.41092,2433.7,2433.3,0.4555]
[1730848078949,0.41092,2433.7,2433.4,0.41095]
[1730848079649,0.41092,2433.7,2433.5,0.41095]
[1730848080144,0.4395,2433.8,2433.6,0.41093]
[1730848080353,0.41091,2433.7,2433.5,0.41094]
[1730848080645,2.56381765,2433.6,2433.0,0.4502]
[1730848080952,0.4395,2433.8,2433.6,0.41092]
[1730848081156,3.6617,2434.1,2433.5,4.23515]
[1730848081342,4.07255,2434.1,2433.7,0.4109]
[1730848081541,3.6617,2434.1,2433.8,0.4683]
[1730848081749,3.2078,2434.1,2434.0,0.41086]
[1730848081945,41.2108,2434.4,2434.0,0.41086]
[1730848081946,40.8,2434.4,2434.0,0.41086]
[1730848082142,2.56381765,2434.3,2433.8,3.6761]
[1730848082341,0.41088,2433.9,2433.8,0.4683]
[1730848082937,0.41088,2433.9,2433.5,3.61874]
[1730848082938,1.3772,2434.0,2433.5,3.2078]
[1730848083141,0.41089,2433.9,2433.5,3.2078]
[1730848083342,1.3772,2434.0,2433.5,3.2078]
[1730848083548,1.78808,2434.0,2433.6,0.41092]
[1730848083857,1.3772,2434.0,2433.6,0.41092]
[1730848084154,0.41088,2433.9,2433.6,0.41092]
[1730848084650,0.41088,2433.9,2433.6,0.41093]
[1730848084848,0.41088,2433.9,2433.5,3.2078]
[1730848085046,1.3772,2434.0,2433.5,3.2078]
[1730848085351,2.56381765,2434.7,2433.8,3.2078]
[1730848085653,0.4108,2434.4,2434.1,0.41083]
[1730848086042,40.8,2434.6,2434.1,7.3158]
[1730848086245,40.8,2434.6,2434.1,3.2078]
[1730848086447,0.41078,2434.5,2434.1,3.2078]
[1730848086748,40.8,2434.6,2434.2,0.41083]
[1730848087049,0.41079,2434.5,2434.2,0.41082]
[1730848088052,0.41079,2434.5,2434.1,3.61863]
[1730848088358,0.41078,2434.5,2434.2,0.41082]
[1730848088539,5.77161765,2434.7,2434.1,3.61863]
[1730848088540,0.41076,2434.6,2434.1,3.61863]
[1730848088835,3.2078,2434.7,2434.1,3.2078]
[1730848088944,3.61856,2434.7,2434.1,3.2078]
[1730848089164,3.61856,2434.7,2434.4,0.41079]
[1730848089352,3.2078,2434.7,2434.1,3.2078]
[1730848089755,3.61855,2434.7,2434.4,0.41079]
[1730848090053,0.41076,2434.6,2434.5,0.4406]
[1730848090851,1.3478,2434.8,2434.5,0.4406]
[1730848090852,0.8827,2434.8,2434.5,0.4406]
[1730848091348,0.41075,2434.7,2434.5,0.4406]
[1730848091554,0.41076,2434.6,2434.5,0.4406]
[1730848091744,3.2078,2434.7,2434.2,0.4406]
[1730848092047,2.56381765,2434.5,2434.1,3.2078]
[1730848092347,0.41078,2434.5,2434.2,0.87712]
[1730848092647,3.89751765,2434.8,2434.2,0.4663]
[1730848092648,3.2078,2434.7,2434.2,0.4663]
[1730848093043,0.41081,2434.3,2434.2,0.4663]
[1730848093840,3.2078,2434.7,2434.2,4.5743]
[1730848094046,0.41079,2434.5,2434.2,0.87712]
[1730848095141,0.4108,2434.4,2434.2,0.4663]
[1730848095442,0.41081,2434.3,2434.2,0.4663]
[1730848095641,0.4108,2434.4,2434.2,0.4663]
[1730848095839,3.2078,2434.7,2434.2,0.4663]
[1730848096039,0.41079,2434.4,2434.2,0.4663]
[1730848096331,0.41079,2434.5,2434.2,0.4663]
[1730848096524,0.41079,2434.4,2434.2,0.87713]
[1730848096717,0.41079,2434.4,2434.2,0.4663]
[1730848096913,3.2078,2434.7,2434.2,0.4663]
[1730848097217,0.41081,2434.3,2434.2,0.4663]
[1730848097417,2.56381765,2434.2,2433.6,3.2078]
[1730848097612,0.41095,2433.5,2433.2,0.444]
[1730848097919,0.41095,2433.5,2433.2,0.8844]
[1730848098214,2.56381765,2433.7,2433.2,0.4404]
[1730848098215,40.8,2433.4,2433.2,0.4404]
[1730848098417,43.36381765,2433.4,2433.1,1.57721145]
[1730848098617,0.41099,2433.3,2433.1,1.57721145]
[1730848098917,47.47341765,2433.4,2433.1,1.57721145]
[1730848099118,43.77478765,2433.4,2433.1,1.57721145]
[1730848099421,0.41099,2433.3,2433.1,1.57721145]
[1730848100112,0.411,2433.2,2433.1,1.57721145]
[1730848100315,0.4348,2433.2,2433.1,1.57721145]
[1730848100816,4.5444,2433.2,2433.1,1.57721145]
[1730848101118,0.41098,2433.3,2433.1,1.57721145]
[1730848101321,0.4348,2433.3,2433.1,1.57721145]
[1730848102012,40.8,2433.4,2433.1,1.57721145]
[1730848102321,41.21097,2433.4,2433.2,0.4312]
[1730848102516,40.8,2433.4,2433.2,0.4312]
[1730848103511,0.8989,2433.6,2433.2,0.4312]
[1730848103716,0.8989,2433.6,2433.2,0.84219]
[1730848104218,0.8989,2433.6,2433.3,0.41098]
[1730848105525,3.61871,2433.8,2433.4,0.41096]
[1730848106520,3.61871,2433.8,2433.2,0.4312]
[1730848106723,3.2078,2433.8,2433.5,0.41094]
[1730848107114,3.2078,2433.8,2433.7,0.41091]
[1730848107413,0.4109,2433.8,2433.4,0.41095]
[1730848107925,46.57161765,2434.0,2433.3,3.2078]
[1730848108127,0.4345,2433.7,2433.4,0.41095]
[1730848108323,0.4345,2433.7,2433.3,3.2078]
[1730848108519,0.4345,2433.7,2433.6,0.41093]
[1730848108721,0.4345,2433.7,2433.3,3.2078]
[1730848108927,0.4345,2433.7,2433.5,0.41094]
[1730848113129,0.4345,2433.7,2433.4,3.2078]
[1730848113526,0.41089,2433.9,2433.5,0.41095]
[1730848113723,0.41089,2433.9,2433.6,0.41093]
[1730848113924,40.8,2433.8,2433.6,0.41093]
[1730848116530,6.18248765,2434.0,2433.7,0.41091]
[1730848116736,0.4109,2433.8,2433.5,0.4426]
[1730848116923,41.2109,2433.8,2433.5,0.4426]
[1730848117125,41.2109,2433.8,2433.6,0.41093]
[1730848117732,41.2109,2433.8,2433.4,3.2078]
[1730848117938,3.02941765,2433.7,2433.2,0.4312]
[1730848118123,3.46961765,2433.7,2433.3,0.41098]
[1730848118433,0.41094,2433.6,2433.3,0.41097]
[1730848118827,0.41093,2433.6,2433.2,0.84219]
[1730848119135,0.41095,2433.5,2433.2,0.84219]
[1730848119637,0.41094,2433.6,2433.3,0.41098]
[1730848121034,3.46961765,2433.7,2433.2,0.4312]
[1730848121228,0.41098,2433.3,2433.2,0.4312]
[1730848121732,2.56381765,2433.4,2433.1,3.2078]
[1730848121926,0.411,2433.2,2433.0,0.41102]
[1730848122432,2.56381765,2433.4,2433.1,0.41101]
[1730848123237,0.41098,2433.3,2433.1,0.41101]
[1730848123537,2.97479765,2433.4,2433.1,0.41101]
[1730848123932,2.56381765,2433.4,2433.1,0.41101]
[1730848124133,0.41098,2433.3,2433.1,0.41101]
[1730848124529,2.56381765,2433.4,2433.1,0.41101]
[1730848124727,2.97478765,2433.4,2433.1,0.41101]
[1730848124926,2.56381765,2433.4,2433.2,0.41099]
[1730848125136,4.1136,2433.7,2433.4,0.41096]
[1730848125137,0.41093,2433.6,2433.4,0.41096]
[1730848125339,6.67741765,2433.7,2432.9,0.4739]
[1730848125340,6.67741765,2433.7,2433.2,0.411]
[1730848125539,6.67741765,2433.7,2433.1,3.61881]
[1730848125540,0.41097,2433.4,2433.1,3.61881]
[1730848125833,0.41095,2433.5,2433.2,0.41098]
[1730848126434,0.41095,2433.5,2433.3,0.41098]
[1730848126737,7.08833765,2433.7,2433.4,0.41095]
[1730848128936,7.08833765,2433.7,2433.1,3.2078]
[1730848129243,7.08833765,2433.7,2433.4,0.41095]
[1730848130345,3.88053765,2433.7,2433.4,0.41095]
[1730848131236,0.41093,2433.6,2433.0,4.23534]
[1730848131544,3.88053765,2433.7,2433.5,0.41095]
[1730848131745,3.88053765,2433.7,2433.1,1.02754]
[1730848131945,0.9058,2433.7,2433.5,0.41094]
[1730848132143,0.87652,2433.7,2433.4,0.41096]
[1730848134051,0.4656,2433.7,2433.2,0.4534]
[1730848134240,0.41094,2433.6,2433.2,0.4534]
[1730848134541,0.41094,2433.6,2433.4,0.41096]
[1730848134747,0.4656,2433.7,2433.4,0.41095]
[1730848134748,0.87652,2433.7,2433.4,0.41095]
[1730848136348,0.41094,2433.6,2433.4,0.41095]
[1730848136943,0.4656,2433.7,2433.2,0.4534]
[1730848137247,0.41094,2433.6,2433.3,0.41097]
[1730848137449,0.85294,2433.6,2433.3,0.41097]
[1730848137936,0.41095,2433.5,2433.3,0.41097]
[1730848138136,0.442,2433.6,2433.0,4.70947]
[1730848138346,0.442,2433.6,2433.4,0.41096]
[1730848138550,0.85294,2433.6,2433.4,0.41096]
[1730848139354,0.442,2433.6,2433.4,0.41096]
[1730848139554,0.85293,2433.6,2433.4,0.41096]
[1730848140555,0.85293,2433.6,2433.0,1.50167]
[1730848140747,0.85293,2433.6,2433.3,0.41097]
[1730848141149,0.41099,2433.3,2433.0,0.41102]
[1730848141358,0.4639,2433.2,2433.0,0.41102]
[1730848142150,0.41103,2433.0,2432.9,0.4739]
[1730848142354,0.4717,2433.1,2432.8,0.41105]
[1730848142558,0.4717,2433.1,2432.9,0.41104]
[1730848142948,0.4717,2433.1,2432.7,0.4408]
[1730848143145,0.88271,2433.1,2432.8,0.41105]
[1730848143347,3.2078,2433.7,2432.9,7.3182]
[1730848143647,0.41096,2433.5,2433.2,0.41099]